[Event "26th Hit Open-A 2022"]
[Site "Nova Gorica"]
[Date "2022.09.17"]
[Round "3.6"]
[White "Ghazarian, Kirk"]
[Black "Thavandiran, Shiyam"]
[Result "1-0"]
[ECO "A70"]
[WhiteElo "2440"]
[BlackElo "2363"]
[Annotator "ChessBase"]
[PlyCount "149"]
[EventDate "2022.09.16"]
[EventType "swiss"]
[EventCountry "SLO"]
[SourceTitle "playchess.com"]
[Source "ChessBase"]
[SourceQuality "1"]
[TimeControl "5400+30"]

1. d4 {[%emt 0:01:07]} Nf6 {[%emt 0:00:09]} 2. c4 {[%emt 0:00:05]} e6 {[%emt 0:00:30]} 3. Nf3 {[%emt 0:00:14]} c5 {[%emt 0:00:14]} 4. d5 {[%emt 0:00:07]} exd5 {[%emt 0:00:06]} 5. cxd5 {[%emt 0:00:05]} d6 {[%emt 0:00:05]} 6. Nc3 {[%emt 0:00:11]} g6 {[%emt 0:00:07]} 7. h3 {[%emt 0:03:42]} Bg7 {[%emt 0:00:14]} 8. e4 {[%emt 0:00:07]} O-O {[%emt 0:00:29]} 9. Be3 {[%emt 0:00:04]} Re8 {[%emt 0:01:16]} 10. Nd2 {[%emt 0:04:24]} Nxe4 {[%emt 0:00:20]} 11. Ncxe4 {[%emt 0:14:07]} f5 {[%emt 0:01:29]} 12. Bb5 {[%emt 0:16:23]} Bd7 {[%emt 0:27:41]} 13. Nxd6 {[%emt 0:09:12]} Bxb5 {[%emt 0:00:54]} 14. Nxb5 {[%emt 0:00:36]} f4 {[%emt 0:00:58]} 15. O-O {[%emt 0:04:40]} fxe3 {[%emt 0:00:19]} 16. fxe3 {[%emt 0:01:09]} a6 {[%emt 0:10:18]} 17. Nc3 {[%emt 0:02:52]} Bxc3 {[%emt 0:37:24]} 18. bxc3 {[%emt 0:00:02]} Qxd5 {[%emt 0:00:07]} 19. Nf3 {[%emt 0:04:31]} Qxd1 {[%emt 0:03:46]} 20. Raxd1 {[%emt 0:00:03]} Nc6 {[%emt 0:00:12]} 21. Rd7 {[%emt 0:01:05]} Rxe3 {[%emt 0:06:18]} 22. Rxb7 {[%emt 0:00:40]} Ra7 {[%emt 0:07:57]} 23. Rb6 {[%emt 0:05:45]} Ne7 {[%emt 0:00:17]} 24. Ng5 {[%emt 0:02:41]} Nd5 {[%emt 0:00:42]} 25. Ne6 {[%emt 0:03:10]} h6 {[%emt 0:00:02]} 26. Rd6 {[%emt 0:02:10]} Nxc3 {[%emt 0:00:26]} 27. Nxc5 {[%emt 0:00:21]} Nxa2 {[%emt 0:00:56]} 28. Rxg6+ {[%emt 0:02:59]} Rg7 {[%emt 0:00:07]} 29. Rxa6 {[%emt 0:05:49]} Nc3 {[%emt 0:01:06]} 30. Ne6 {[%emt 0:04:36]} Re7 {[%emt 0:00:27]} 31. Nd4 {[%emt 0:01:18]} h5 {[%emt 0:00:32]} 32. Nf5 {[%emt 0:06:22]} R7e6 {[%emt 0:00:06]} 33. Ra8+ {[%emt 0:00:03]} Re8 {[%emt 0:00:09]} 34. Nxe3 {[%emt 0:00:07]} Rxa8 {[%emt 0:00:04]} 35. Rf5 {[%emt 0:00:07]} h4 {[%emt 0:01:37]} 36. Rh5 {[%emt 0:00:22]} Re8 {[%emt 0:00:32]} 37. Nf5 {[%emt 0:00:56]} Ne2+ {[%emt 0:00:32]} 38. Kh2 {[%emt 0:00:45]} Rf8 {[%emt 0:00:22]} 39. Nxh4 {[%emt 0:00:43]} Rf2 {[%emt 0:00:09]} 40. Ra5 {[%emt 0:01:43]} Nd4 {[%emt 0:00:38]} 41. Kg3 {[%emt 0:01:10]} Rb2 {[%emt 0:00:38]} 42. Nf5 {[%emt 0:02:56]} Ne2+ {[%emt 0:00:39]} 43. Kg4 {[%emt 0:00:24]} Rb4+ {[%emt 0:00:06]} 44. Kf3 {[%emt 0:00:30]} Rb2 {[%emt 0:00:06]} 45. Ne3 {[%emt 0:00:48]} Ng1+ {[%emt 0:01:03]} 46. Ke4 {[%emt 0:00:29]} Rf2 {[%emt 0:00:40]} 47. Rf5 {[%emt 0:01:22]} Ra2 {[%emt 0:00:02]} 48. Rc5 {[%emt 0:00:31]} Ne2 {[%emt 0:00:20]} 49. g4 {[%emt 0:00:33]} Ra3 {[%emt 0:00:29]} 50. h4 {[%emt 0:00:49]} Ng3+ {[%emt 0:01:17]} 51. Kf3 {[%emt 0:00:11]} Nf1 {[%emt 0:00:02]} 52. Re5 {[%emt 0:00:09]} Nd2+ {[%emt 0:00:38]} 53. Ke2 {[%emt 0:01:00]} Ra2 {[%emt 0:00:09]} 54. Rg5+ {[%emt 0:00:41]} Kh7 {[%emt 0:00:02]} 55. Rb5 {[%emt 0:00:33]} Ne4+ {[%emt 0:01:03]} 56. Kf3 {[%emt 0:00:17]} Nd2+ {[%emt 0:00:05]} 57. Kf4 {[%emt 0:00:29]} Ra4+ {[%emt 0:00:02]} 58. Kf5 {[%emt 0:00:27]} Nf3 {[%emt 0:00:05]} 59. Rb7+ {[%emt 0:00:21]} Kg8 {[%emt 0:00:10]} 60. Rb8+ {[%emt 0:00:03]} Kh7 {[%emt 0:00:13]} 61. Rb7+ {[%emt 0:00:20]} Kg8 {[%emt 0:00:12]} 62. h5 {[%emt 0:00:44]} Ra5+ {[%emt 0:01:28]} 63. Kf4 {[%emt 0:00:24]} Nd4 {[%emt 0:01:39]} 64. Rb6 {[%emt 0:01:01]} Kf7 {[%emt 0:00:22]} 65. Nc4 {[%emt 0:00:45]} Ra4 {[%emt 0:00:18]} 66. Nd6+ {[%emt 0:00:31]} Kg8 {[%emt 0:00:10]} 67. Rb8+ {[%emt 0:00:34]} Kh7 {[%emt 0:00:07]} 68. Rb7+ {[%emt 0:00:02]} Kg8 {[%emt 0:00:07]} 69. Ne4 {[%emt 0:01:01]} Ne6+ {[%emt 0:02:30]} 70. Kf5 {[%emt 0:00:03]} Nf8 {[%emt 0:00:11]} 71. Nf6+ {[%emt 0:00:41]} Kh8 {[%emt 0:00:02]} 72. Rb5 {[%emt 0:00:22]} Ra1 {[%emt 0:00:18]} 73. Kg5 {[%emt 0:00:53]} Ne6+ {[%emt 0:00:10]} 74. Kh6 {[%emt 0:00:29]} Nf8 {[%emt 0:00:18]} 75. Rg5 {[%emt 0:00:32]} 1-0

[Event "26th Hit Open-A 2022"]
[Site "Nova Gorica"]
[Date "2022.09.17"]
[Round "3.7"]
[White "Davies, Nigel R"]
[Black "Van Dael, Siem"]
[Result "1/2-1/2"]
[ECO "B07"]
[WhiteElo "2420"]
[BlackElo "2316"]
[Annotator "ChessBase"]
[PlyCount "105"]
[EventDate "2022.09.16"]
[EventType "swiss"]
[EventCountry "SLO"]
[SourceTitle "playchess.com"]
[Source "ChessBase"]
[SourceQuality "1"]
[TimeControl "5400+30"]

1. g3 {[%emt 0:01:12]} g6 {[%emt 0:00:20]} 2. Bg2 {[%emt 0:00:13]} Bg7 {[%emt 0:00:06]} 3. d4 {[%emt 0:00:24]} d6 {[%emt 0:00:12]} 4. e4 {[%emt 0:01:44]} Nf6 {[%emt 0:00:31]} 5. Ne2 {[%emt 0:00:08]} O-O {[%emt 0:00:13]} 6. O-O {[%emt 0:00:08]} e5 {[%emt 0:01:31]} 7. Nbc3 {[%emt 0:04:39]} Nc6 {[%emt 0:00:45]} 8. dxe5 {[%emt 0:11:06]} dxe5 {[%emt 0:01:32]} 9. Bg5 {[%emt 0:00:26]} Qxd1 {[%emt 0:01:04]} 10. Rfxd1 {[%emt 0:05:00]} h6 {[%emt 0:00:17]} 11. Be3 {[%emt 0:01:23]} Be6 {[%emt 0:01:22]} 12. Nd5 {[%emt 0:01:13]} Bxd5 {[%emt 0:02:46]} 13. exd5 {[%emt 0:00:22]} Ne7 {[%emt 0:00:10]} 14. Bc5 {[%emt 0:05:16]} Rfe8 {[%emt 0:00:27]} 15. d6 {[%emt 0:03:03]} cxd6 {[%emt 0:00:31]} 16. Bxd6 {[%emt 0:00:07]} Nc6 {[%emt 0:00:57]} 17. a4 {[%emt 0:08:41]} e4 {[%emt 0:03:28]} 18. Nc3 {[%emt 0:04:00]} e3 {[%emt 0:02:04]} 19. fxe3 {[%emt 0:01:41]} Ng4 {[%emt 0:00:24]} 20. Bc5 {[%emt 0:07:17]} Nxe3 {[%emt 0:02:43]} 21. Bxe3 {[%emt 0:00:08]} Rxe3 {[%emt 0:00:10]} 22. Rd7 {[%emt 0:00:53]} Ne5 {[%emt 0:08:51]} 23. Rxb7 {[%emt 0:01:10]} Rd8 {[%emt 0:01:10]} 24. Rxa7 {[%emt 0:08:32]} Ng4 {[%emt 0:05:02]} 25. Ra8 {[%emt 0:01:05]} Rxa8 {[%emt 0:03:20]} 26. Bxa8 {[%emt 0:00:06]} Bd4 {[%emt 0:00:17]} 27. Kg2 {[%emt 0:01:23]} Bxc3 {[%emt 0:00:11]} 28. bxc3 {[%emt 0:00:07]} Rxc3 {[%emt 0:00:04]} 29. a5 {[%emt 0:02:59]} Rxc2+ {[%emt 0:00:25]} 30. Kg1 {[%emt 0:00:07]} Rc7 {[%emt 0:02:00]} 31. a6 {[%emt 0:00:08]} Ra7 {[%emt 0:00:04]} 32. Bb7 {[%emt 0:00:27]} Ne5 {[%emt 0:00:56]} 33. Rc1 {[%emt 0:00:58]} Kg7 {[%emt 0:10:24]} 34. Rc8 {[%emt 0:00:25]} Nd7 {[%emt 0:00:18]} 35. Ra8 {[%emt 0:00:17]} Rxa8 {[%emt 0:00:05]} 36. Bxa8 {[%emt 0:00:06]} Nb6 {[%emt 0:00:08]} 37. Bb7 {[%emt 0:00:34]} f5 {[%emt 0:00:49]} 38. Kf2 {[%emt 0:09:02]} Kf6 {[%emt 0:00:11]} 39. h4 {[%emt 0:01:15]} Ke5 {[%emt 0:09:19]} 40. a7 {[%emt 0:03:46]} Kd4 {[%emt 0:08:48]} 41. Kf3 {[%emt 0:01:17]} g5 {[%emt 0:01:02]} 42. h5 {[%emt 0:00:11]} Ke5 {[%emt 0:04:19]} 43. a8=Q {[%emt 0:03:50]} Nxa8 {[%emt 0:00:04]} 44. Bxa8 {[%emt 0:00:05]} f4 {[%emt 0:00:08]} 45. g4 {[%emt 0:00:04]} Kd4 {[%emt 0:00:04]} 46. Be4 {[%emt 0:00:34]} Ke5 {[%emt 0:00:19]} 47. Bf5 {[%emt 0:00:37]} Kd4 {[%emt 0:00:04]} 48. Ke2 {[%emt 0:00:20]} Kc3 {[%emt 0:00:22]} 49. Bd3 {[%emt 0:01:11]} Kd4 {[%emt 0:00:03]} 50. Kd2 {[%emt 0:00:11]} Ke5 {[%emt 0:00:12]} 51. Bb1 {[%emt 0:01:42]} Kd4 {[%emt 0:00:08]} 52. Bd3 {[%emt 0:05:10]} Ke5 {[%emt 0:00:07]} 53. Bb1 {[%emt 0:01:03]} 1/2-1/2

[Event "26th Hit Open-A 2022"]
[Site "Nova Gorica"]
[Date "2022.09.17"]
[Round "3.8"]
[White "Guid, Matej"]
[Black "Schreiner, Peter"]
[Result "1/2-1/2"]
[ECO "C28"]
[WhiteElo "2292"]
[BlackElo "2405"]
[Annotator "ChessBase"]
[PlyCount "22"]
[EventDate "2022.09.16"]
[EventType "swiss"]
[EventCountry "SLO"]
[SourceTitle "playchess.com"]
[Source "ChessBase"]
[SourceQuality "1"]
[TimeControl "5400+30"]

1. e4 {[%emt 0:00:02]} e5 {[%emt 0:05:35]} 2. Bc4 {[%emt 0:00:06]} Nf6 {[%emt 0:00:14]} 3. d3 {[%emt 0:00:05]} Nc6 {[%emt 0:00:36]} 4. Nc3 {[%emt 0:00:08]} Na5 {[%emt 0:02:37]} 5. Bb3 {[%emt 0:00:10]} Bb4 {[%emt 0:09:58]} 6. Nf3 {[%emt 0:06:11]} Nxb3 {[%emt 0:08:06]} 7. axb3 {[%emt 0:00:06]} d5 {[%emt 0:04:14]} 8. O-O {[%emt 0:00:40]} dxe4 {[%emt 0:02:44]} 9. Nxe5 {[%emt 0:00:21]} exd3 {[%emt 0:06:52]} 10. Nxd3 {[%emt 0:11:05]} Be7 {[%emt 0:07:48]} 11. Qf3 {[%emt 0:02:26]} O-O {[%emt 0:01:03]} 1/2-1/2

[Event "26th Hit Open-A 2022"]
[Site "Nova Gorica"]
[Date "2022.09.17"]
[Round "3.9"]
[White "Fercec, Nenad"]
[Black "Gschiel, Alexander"]
[Result "1/2-1/2"]
[ECO "B12"]
[WhiteElo "2403"]
[BlackElo "2196"]
[Annotator "ChessBase"]
[PlyCount "93"]
[EventDate "2022.09.16"]
[EventType "swiss"]
[EventCountry "SLO"]
[SourceTitle "playchess.com"]
[Source "ChessBase"]
[SourceQuality "1"]
[TimeControl "5400+30"]

1. e4 {[%emt 0:00:09]} c6 {[%emt 0:00:10]} 2. d4 {[%emt 0:00:08]} d5 {[%emt 0:00:05]} 3. e5 {[%emt 0:00:22]} Bf5 {[%emt 0:00:11]} 4. Nf3 {[%emt 0:00:17]} e6 {[%emt 0:00:24]} 5. Be2 {[%emt 0:00:08]} c5 {[%emt 0:00:14]} 6. O-O {[%emt 0:01:59]} Nc6 {[%emt 0:00:20]} 7. Be3 {[%emt 0:00:20]} cxd4 {[%emt 0:00:59]} 8. Nxd4 {[%emt 0:00:09]} Nxd4 {[%emt 0:00:04]} 9. Qxd4 {[%emt 0:00:14]} Ne7 {[%emt 0:00:28]} 10. Bb5+ {[%emt 0:00:09]} Nc6 {[%emt 0:00:08]} 11. Qa4 {[%emt 0:00:05]} Qc8 {[%emt 0:00:47]} 12. c4 {[%emt 0:01:16]} a6 {[%emt 0:00:33]} 13. Bxc6+ {[%emt 0:00:07]} Qxc6 {[%emt 0:00:09]} 14. Qxc6+ {[%emt 0:00:18]} bxc6 {[%emt 0:00:05]} 15. Rc1 {[%emt 0:00:22]} Rb8 {[%emt 0:07:23]} 16. b3 {[%emt 0:01:48]} Kd7 {[%emt 0:05:55]} 17. Rd1 {[%emt 0:07:36]} f6 {[%emt 0:03:13]} 18. exf6 {[%emt 0:01:57]} gxf6 {[%emt 0:00:02]} 19. Nc3 {[%emt 0:00:14]} Ba3 {[%emt 0:05:25]} 20. Na4 {[%emt 0:00:25]} Kd6 {[%emt 0:00:21]} 21. Bc1 {[%emt 0:03:09]} Bxc1 {[%emt 0:08:32]} 22. Raxc1 {[%emt 0:00:08]} e5 {[%emt 0:02:09]} 23. cxd5 {[%emt 0:02:08]} cxd5 {[%emt 0:03:20]} 24. Rc5 {[%emt 0:00:05]} d4 {[%emt 0:02:06]} 25. Ra5 {[%emt 0:00:42]} Rhc8 {[%emt 0:03:56]} 26. Rxa6+ {[%emt 0:01:20]} Rc6 {[%emt 0:00:06]} 27. Rxc6+ {[%emt 0:00:10]} Kxc6 {[%emt 0:00:01]} 28. Rc1+ {[%emt 0:02:41]} Kb5 {[%emt 0:02:28]} 29. Kf1 {[%emt 0:03:06]} Kb4 {[%emt 0:06:05]} 30. Ke1 {[%emt 0:01:06]} Ka3 {[%emt 0:01:20]} 31. Rc6 {[%emt 0:00:37]} Kxa2 {[%emt 0:06:59]} 32. Rxf6 {[%emt 0:09:00]} Bc2 {[%emt 0:06:57]} 33. Nc5 {[%emt 0:00:27]} Bxb3 {[%emt 0:00:36]} 34. Nxb3 {[%emt 0:07:37]} Kxb3 {[%emt 0:02:00]} 35. Kd2 {[%emt 0:01:17]} Kc4 {[%emt 0:01:12]} 36. Rc6+ {[%emt 0:00:08]} Kd5 {[%emt 0:00:23]} 37. Rc2 {[%emt 0:00:41]} Rg8 {[%emt 0:00:41]} 38. g3 {[%emt 0:00:15]} Rf8 {[%emt 0:05:09]} 39. Ke2 {[%emt 0:01:40]} Rb8 {[%emt 0:03:04]} 40. f3 {[%emt 0:00:37]} Rb3 {[%emt 0:00:36]} 41. Ra2 {[%emt 0:00:29]} Kc4 {[%emt 0:01:51]} 42. Ra4+ {[%emt 0:02:32]} Kc3 {[%emt 0:00:32]} 43. Ra2 {[%emt 0:00:13]} Kb4 {[%emt 0:04:27]} 44. Ra7 {[%emt 0:01:53]} Rb2+ {[%emt 0:00:14]} 45. Kd3 {[%emt 0:00:06]} Rxh2 {[%emt 0:01:45]} 46. f4 {[%emt 0:00:14]} exf4 {[%emt 0:00:24]} 47. Ke4 {[%emt 0:00:17]} 1/2-1/2

[Event "26th Hit Open-A 2022"]
[Site "Nova Gorica"]
[Date "2022.09.17"]
[Round "3.10"]
[White "Lodici, Lorenzo"]
[Black "Garsky, Vladyslav"]
[Result "1-0"]
[ECO "A55"]
[WhiteElo "2559"]
[BlackElo "2229"]
[Annotator "ChessBase"]
[PlyCount "77"]
[EventDate "2022.09.16"]
[EventType "swiss"]
[EventCountry "SLO"]
[SourceTitle "playchess.com"]
[Source "ChessBase"]
[SourceQuality "1"]
[TimeControl "5400+30"]

1. e4 {[%emt 0:00:51]} c6 {[%emt 0:02:10]} 2. Nf3 {[%emt 0:00:22]} d6 {[%emt 0:01:35]} 3. c4 {[%emt 0:01:49]} Nf6 {[%emt 0:00:37]} 4. Nc3 {[%emt 0:00:05]} e5 {[%emt 0:00:22]} 5. d4 {[%emt 0:00:06]} Qc7 {[%emt 0:00:36]} 6. Be2 {[%emt 0:02:05]} Be7 {[%emt 0:01:31]} 7. O-O {[%emt 0:00:12]} O-O {[%emt 0:00:05]} 8. Re1 {[%emt 0:00:59]} Nbd7 {[%emt 0:02:03]} 9. Bf1 {[%emt 0:01:36]} Re8 {[%emt 0:01:41]} 10. h3 {[%emt 0:01:59]} Nf8 {[%emt 0:00:42]} 11. Rb1 {[%emt 0:00:49]} a5 {[%emt 0:02:48]} 12. Be3 {[%emt 0:00:33]} Ng6 {[%emt 0:01:00]} 13. Qc2 {[%emt 0:02:48]} Rb8 {[%emt 0:06:46]} 14. Rbc1 {[%emt 0:00:56]} Nd7 {[%emt 0:05:59]} 15. g3 {[%emt 0:02:56]} h5 {[%emt 0:02:58]} 16. h4 {[%emt 0:01:21]} Nf6 {[%emt 0:01:03]} 17. dxe5 {[%emt 0:09:55]} dxe5 {[%emt 0:00:53]} 18. Na4 {[%emt 0:00:38]} b6 {[%emt 0:05:29]} 19. c5 {[%emt 0:04:23]} b5 {[%emt 0:01:31]} 20. Nb6 {[%emt 0:00:06]} Ng4 {[%emt 0:12:00]} 21. Bd2 {[%emt 0:03:02]} Bxc5 {[%emt 0:01:13]} 22. Qxc5 {[%emt 0:00:11]} Qxb6 {[%emt 0:00:12]} 23. Qxb6 {[%emt 0:00:12]} Rxb6 {[%emt 0:00:02]} 24. Bxa5 {[%emt 0:00:10]} Ra6 {[%emt 0:00:11]} 25. b4 {[%emt 0:00:12]} f5 {[%emt 0:02:56]} 26. exf5 {[%emt 0:03:56]} Bxf5 {[%emt 0:00:40]} 27. a4 {[%emt 0:01:30]} Bd7 {[%emt 0:00:09]} 28. Ng5 {[%emt 0:06:11]} Nf6 {[%emt 0:01:35]} 29. Bd3 {[%emt 0:03:24]} e4 {[%emt 0:01:47]} 30. Nxe4 {[%emt 0:04:47]} Nxe4 {[%emt 0:00:05]} 31. Bxe4 {[%emt 0:00:45]} Ne5 {[%emt 0:00:19]} 32. axb5 {[%emt 0:10:16]} cxb5 {[%emt 0:00:12]} 33. Bc7 {[%emt 0:00:19]} Rae6 {[%emt 0:02:40]} 34. Red1 {[%emt 0:02:37]} Bc6 {[%emt 0:00:12]} 35. Bxc6 {[%emt 0:00:10]} Rxc6 {[%emt 0:02:56]} 36. Rxc6 {[%emt 0:03:04]} Nxc6 {[%emt 0:00:07]} 37. Rd5 {[%emt 0:00:17]} Nxb4 {[%emt 0:00:29]} 38. Rxb5 {[%emt 0:00:09]} Na6 {[%emt 0:00:42]} 39. Bf4 {[%emt 0:00:13]} 1-0

[Event "26th Hit Open-A 2022"]
[Site "Nova Gorica"]
[Date "2022.09.17"]
[Round "3.11"]
[White "Thybo, Jesper Sondergaard"]
[Black "Karlusic, Luka"]
[Result "1/2-1/2"]
[ECO "B40"]
[WhiteElo "2516"]
[BlackElo "2215"]
[Annotator "ChessBase"]
[PlyCount "94"]
[EventDate "2022.09.16"]
[EventType "swiss"]
[EventCountry "SLO"]
[SourceTitle "playchess.com"]
[Source "ChessBase"]
[SourceQuality "1"]
[TimeControl "5400+30"]

1. e4 {[%emt 0:04:51]} c5 {[%emt 0:00:19]} 2. Nf3 {[%emt 0:00:15]} e6 {[%emt 0:00:27]} 3. g3 {[%emt 0:00:09]} d5 {[%emt 0:01:08]} 4. exd5 {[%emt 0:00:21]} exd5 {[%emt 0:00:22]} 5. d4 {[%emt 0:00:36]} Nc6 {[%emt 0:00:24]} 6. Bg2 {[%emt 0:01:28]} Bg4 {[%emt 0:00:44]} 7. h3 {[%emt 0:05:12]} Qe7+ {[%emt 0:19:15]} 8. Kf1 {[%emt 0:01:57]} Bxf3 {[%emt 0:02:49]} 9. Qxf3 {[%emt 0:04:25]} Nxd4 {[%emt 0:09:38]} 10. Qd3 {[%emt 0:00:36]} Nf6 {[%emt 0:05:07]} 11. Bg5 {[%emt 0:08:35]} O-O-O {[%emt 0:11:49]} 12. Nc3 {[%emt 0:02:06]} Ne6 {[%emt 0:01:38]} 13. Re1 {[%emt 0:14:18]} d4 {[%emt 0:10:30]} 14. Nd5 {[%emt 0:11:01]} Qd6 {[%emt 0:00:33]} 15. Bxf6 {[%emt 0:04:54]} gxf6 {[%emt 0:00:56]} 16. Qf5 {[%emt 0:01:09]} Bg7 {[%emt 0:06:02]} 17. Nf4 {[%emt 0:01:13]} Rhe8 {[%emt 0:03:44]} 18. Bd5 {[%emt 0:08:13]} Kb8 {[%emt 0:11:34]} 19. Bxe6 {[%emt 0:00:12]} fxe6 {[%emt 0:00:08]} 20. Rxe6 {[%emt 0:00:08]} Rxe6 {[%emt 0:01:23]} 21. Nxe6 {[%emt 0:00:33]} Rd7 {[%emt 0:05:34]} 22. Nxc5 {[%emt 0:01:09]} Re7 {[%emt 0:01:52]} 23. Kg2 {[%emt 0:03:20]} Re2 {[%emt 0:02:25]} 24. Rd1 {[%emt 0:06:10]} Bh6 {[%emt 0:01:16]} 25. Qf3 {[%emt 0:01:43]} Qc6 {[%emt 0:00:17]} 26. Qxc6 {[%emt 0:03:52]} bxc6 {[%emt 0:00:08]} 27. Rxd4 {[%emt 0:00:36]} Rxc2 {[%emt 0:00:31]} 28. Rd8+ {[%emt 0:02:08]} Kc7 {[%emt 0:00:05]} 29. Rd7+ {[%emt 0:02:12]} Kb6 {[%emt 0:00:15]} 30. Nd3 {[%emt 0:03:47]} c5 {[%emt 0:00:47]} 31. Rd6+ {[%emt 0:01:40]} Kb5 {[%emt 0:00:57]} 32. Rxf6 {[%emt 0:00:03]} Bg7 {[%emt 0:00:55]} 33. Rf7 {[%emt 0:02:55]} Bd4 {[%emt 0:00:06]} 34. a4+ {[%emt 0:01:59]} Kc4 {[%emt 0:00:33]} 35. Rf3 {[%emt 0:00:35]} Bxb2 {[%emt 0:00:39]} 36. Nxb2+ {[%emt 0:00:16]} Rxb2 {[%emt 0:00:01]} 37. Rf7 {[%emt 0:00:12]} Kd3 {[%emt 0:01:55]} 38. Rd7+ {[%emt 0:00:49]} Ke4 {[%emt 0:00:34]} 39. Rxh7 {[%emt 0:02:21]} c4 {[%emt 0:00:34]} 40. Rc7 {[%emt 0:00:44]} Kd3 {[%emt 0:00:17]} 41. h4 {[%emt 0:00:59]} c3 {[%emt 0:00:05]} 42. h5 {[%emt 0:00:04]} c2 {[%emt 0:00:38]} 43. h6 {[%emt 0:01:34]} Rb6 {[%emt 0:00:10]} 44. h7 {[%emt 0:00:30]} Rh6 {[%emt 0:00:04]} 45. Kf3 {[%emt 0:00:33]} Rf6+ {[%emt 0:00:03]} 46. Kg2 {[%emt 0:00:33]} Rh6 {[%emt 0:00:02]} 47. Kf3 {[%emt 0:00:16]} Rf6+ {[%emt 0:00:04]} 1/2-1/2

[Event "26th Hit Open-A 2022"]
[Site "Nova Gorica"]
[Date "2022.09.17"]
[Round "3.12"]
[White "Beliavsky, Alexander G"]
[Black "Leitner, Gerald"]
[Result "0-1"]
[ECO "D45"]
[WhiteElo "2505"]
[BlackElo "2181"]
[Annotator "ChessBase"]
[PlyCount "92"]
[EventDate "2022.09.16"]
[EventType "swiss"]
[EventCountry "SLO"]
[SourceTitle "playchess.com"]
[Source "ChessBase"]
[SourceQuality "1"]
[TimeControl "5400+30"]

1. d4 {[%emt 0:00:04]} Nf6 {[%emt 0:00:10]} 2. c4 {[%emt 0:00:05]} c6 {[%emt 0:00:01]} 3. Nc3 {[%emt 0:01:50]} d5 {[%emt 0:00:04]} 4. Nf3 {[%emt 0:00:11]} e6 {[%emt 0:00:08]} 5. e3 {[%emt 0:03:27]} Nbd7 {[%emt 0:00:07]} 6. Qc2 {[%emt 0:00:15]} Bd6 {[%emt 0:00:17]} 7. b3 {[%emt 0:00:22]} O-O {[%emt 0:00:40]} 8. Be2 {[%emt 0:00:07]} dxc4 {[%emt 0:09:24]} 9. bxc4 {[%emt 0:00:42]} e5 {[%emt 0:00:28]} 10. O-O {[%emt 0:00:53]} Re8 {[%emt 0:05:23]} 11. a4 {[%emt 0:04:40]} exd4 {[%emt 0:11:12]} 12. exd4 {[%emt 0:02:49]} b6 {[%emt 0:02:59]} 13. Bb2 {[%emt 0:08:40]} Bb7 {[%emt 0:01:04]} 14. Rad1 {[%emt 0:08:46]} Rc8 {[%emt 0:02:51]} 15. Bd3 {[%emt 0:03:11]} Qc7 {[%emt 0:05:02]} 16. g3 {[%emt 0:04:29]} Bf8 {[%emt 0:01:21]} 17. Bc1 {[%emt 0:06:29]} Rcd8 {[%emt 0:02:40]} 18. Rfe1 {[%emt 0:04:12]} h6 {[%emt 0:00:59]} 19. Nh4 {[%emt 0:01:32]} Rxe1+ {[%emt 0:06:06]} 20. Rxe1 {[%emt 0:00:04]} Re8 {[%emt 0:01:53]} 21. Rd1 {[%emt 0:00:22]} Qd8 {[%emt 0:05:44]} 22. Nf5 {[%emt 0:01:43]} Nb8 {[%emt 0:03:21]} 23. Bf1 {[%emt 0:06:38]} Na6 {[%emt 0:02:11]} 24. Na2 {[%emt 0:01:20]} Bc8 {[%emt 0:03:22]} 25. Ne3 {[%emt 0:03:48]} Nc7 {[%emt 0:01:30]} 26. Bg2 {[%emt 0:01:22]} Bd7 {[%emt 0:01:28]} 27. Nc3 {[%emt 0:03:15]} Ne6 {[%emt 0:02:09]} 28. Nf5 {[%emt 0:02:24]} Qc8 {[%emt 0:00:50]} 29. h4 {[%emt 0:02:05]} b5 {[%emt 0:05:52]} 30. Ne4 {[%emt 0:03:55]} Nxe4 {[%emt 0:00:22]} 31. Bxe4 {[%emt 0:00:02]} bxc4 {[%emt 0:01:31]} 32. Qxc4 {[%emt 0:06:34]} Nd8 {[%emt 0:00:48]} 33. Qc2 {[%emt 0:01:19]} Rxe4 {[%emt 0:03:04]} 34. Nxh6+ {[%emt 0:00:04]} gxh6 {[%emt 0:00:01]} 35. Qxe4 {[%emt 0:00:01]} Be6 {[%emt 0:01:09]} 36. Qd3 {[%emt 0:02:09]} Bd5 {[%emt 0:00:28]} 37. Kh2 {[%emt 0:00:04]} Qg4 {[%emt 0:01:55]} 38. Bf4 {[%emt 0:02:19]} Ne6 {[%emt 0:01:27]} 39. Rg1 {[%emt 0:00:56]} Bg7 {[%emt 0:02:29]} 40. Qd1 {[%emt 0:00:37]} Bf3 {[%emt 0:06:17]} 41. Qd2 {[%emt 0:00:06]} Nxd4 {[%emt 0:01:57]} 42. Be3 {[%emt 0:00:08]} c5 {[%emt 0:01:14]} 43. Bxd4 {[%emt 0:02:16]} Qxd4 {[%emt 0:01:31]} 44. Qxd4 {[%emt 0:01:13]} cxd4 {[%emt 0:00:11]} 45. Rc1 {[%emt 0:00:44]} d3 {[%emt 0:00:49]} 46. Rc8+ {[%emt 0:00:06]} Kh7 {[%emt 0:00:07]} 0-1